bitfinex/quotes_BTCUSD_20240613
["timestamp","ask_amount","ask_price","bid_price","bid_amount"]
[1718321756901,0.0134817,66884.0,66883.0,1.07545986]
[1718321757616,0.0134817,66884.0,66883.0,1.11465442]
[1718321758067,0.0134817,66884.0,66883.0,1.04355442]
[1718321758183,0.0134817,66884.0,66883.0,1.11465442]
[1718321758820,0.1556817,66884.0,66883.0,0.7326859]
[1718321759025,0.1556817,66884.0,66883.0,0.8037859]
[1718321759604,0.1756817,66884.0,66883.0,0.8037859]
[1718321759809,0.1756817,66884.0,66883.0,0.80408756]
[1718321760427,0.1556817,66884.0,66883.0,0.80408756]
[1718321761474,0.1556817,66884.0,66883.0,0.80505096]
[1718321763487,0.1556817,66884.0,66883.0,0.75157181]
[1718321763693,0.1556817,66884.0,66883.0,0.82267181]
[1718321763924,0.1556817,66884.0,66883.0,0.75157181]
[1718321764124,0.1756817,66884.0,66883.0,0.75157181]
[1718321764327,0.1756817,66884.0,66883.0,0.82267181]
[1718321764986,0.1556817,66884.0,66883.0,0.82267181]
[1718321766220,0.1756817,66884.0,66883.0,0.82267181]
[1718321767423,0.1756817,66884.0,66883.0,0.93468077]
[1718321767634,0.1756817,66884.0,66883.0,0.82267181]
[1718321767832,0.1756817,66884.0,66883.0,0.93468077]
[1718321768681,0.1756817,66884.0,66883.0,0.82267181]
[1718321769081,0.1756817,66884.0,66883.0,0.93468077]
[1718321769298,0.1756817,66884.0,66883.0,0.82267181]
[1718321769505,0.1756817,66884.0,66883.0,0.93467659]
[1718321769679,0.1756817,66884.0,66883.0,0.93467601]
[1718321769949,0.1556817,66884.0,66883.0,0.82267181]
[1718321771404,0.1756817,66884.0,66883.0,0.82267181]
[1718321772309,0.1556817,66884.0,66883.0,0.80505096]
[1718321775501,0.1556817,66884.0,66883.0,0.82283843]
[1718321776533,0.1556817,66884.0,66883.0,0.97235243]
[1718321778117,0.1556817,66884.0,66883.0,0.82283843]
[1718321778934,0.1556817,66884.0,66883.0,0.82023508]
[1718321779964,0.1556817,66884.0,66883.0,0.96974908]
[1718321782930,0.0134817,66884.0,66883.0,0.96974908]
[1718321783132,0.0134817,66884.0,66883.0,1.10414411]
[1718321783306,0.0134817,66884.0,66883.0,0.96974908]
[1718321783718,0.0134817,66884.0,66883.0,0.95196161]
[1718321784121,0.0134817,66884.0,66883.0,1.0863523]
[1718321784679,0.0134817,66884.0,66883.0,0.99115629]
[1718321784877,0.0134817,66884.0,66883.0,0.95196161]
[1718321785304,0.0134817,66884.0,66883.0,1.08635411]
[1718321785916,0.0134817,66884.0,66883.0,0.95196161]
[1718321788107,0.0134817,66884.0,66883.0,0.96977939]
[1718321791400,0.0134817,66884.0,66883.0,0.81577338]
[1718321791619,0.0134817,66884.0,66883.0,0.95423383]
[1718321793460,0.0134817,66884.0,66883.0,1.08862582]
[1718321793707,0.0134817,66884.0,66883.0,0.95423383]
[1718321794249,0.01330173,66884.0,66883.0,0.95423383]
[1718321795071,0.01330173,66884.0,66883.0,0.88313383]
[1718321795272,0.15350173,66884.0,66883.0,0.80471983]
[1718321795856,0.17350173,66884.0,66883.0,0.80471983]
[1718321797635,0.15350173,66884.0,66883.0,0.80471983]
[1718321797807,0.17350173,66884.0,66883.0,0.80471983]
[1718321799431,0.17350173,66884.0,66883.0,0.78690205]
[1718321800234,0.17350173,66884.0,66883.0,0.89894163]
[1718321800614,0.17350173,66884.0,66883.0,0.89894484]
[1718321800913,0.17350173,66884.0,66883.0,0.9172995]
[1718321801121,0.17350173,66884.0,66883.0,0.8461995]
[1718321801327,0.17350173,66884.0,66883.0,0.70187957]
[1718321801550,0.18350173,66884.0,66883.0,0.18581069]
[1718321801760,0.18350173,66884.0,66883.0,0.16281069]
[1718321801930,0.18444773,66884.0,66883.0,0.16281069]
[1718321802140,0.18444773,66884.0,66883.0,0.0387795]
[1718321803169,0.18444773,66884.0,66883.0,0.0317795]
[1718321803338,0.18444773,66884.0,66883.0,0.0617795]
[1718321803942,0.18444773,66884.0,66883.0,0.0547795]
[1718321804189,0.18444773,66884.0,66883.0,0.0317795]
[1718321804375,0.18444773,66884.0,66883.0,0.0237795]
[1718321804577,0.18444773,66884.0,66883.0,0.004]
[1718321806344,0.18444773,66884.0,66883.0,0.016]
[1718321806544,0.18444773,66884.0,66883.0,0.004]
[1718321806934,0.18444773,66884.0,66883.0,0.016]
[1718321813908,0.49986766,66884.0,66883.0,0.016]
[1718321814136,0.61670789,66884.0,66883.0,0.016]
[1718321814550,0.67838054,66884.0,66883.0,0.016]
[1718321814751,0.61670789,66884.0,66883.0,0.016]
[1718321814957,0.61670789,66884.0,66883.0,0.012]
[1718321815645,0.2606,66877.0,66876.0,0.00086]
[1718321815843,0.3417,66877.0,66876.0,0.00086]
[1718321817039,0.3417,66877.0,66876.0,0.01386]
[1718321819536,0.52018993,66877.0,66876.0,0.01386]
[1718321820189,0.48601993,66877.0,66876.0,0.01386]
[1718321820437,0.98601993,66877.0,66876.0,0.01386]
[1718321823554,1.14341993,66877.0,66876.0,0.01386]
[1718321824672,1.34341993,66877.0,66876.0,0.01386]
[1718321825094,1.42332134,66877.0,66876.0,0.01386]
[1718321825300,1.42332134,66877.0,66869.0,0.00086]
[1718321825301,0.9317,66870.0,66869.0,0.00086]
[1718321825517,1.25028993,66870.0,66869.0,0.00086]
[1718321826130,1.30028993,66870.0,66869.0,0.00086]
[1718321826332,1.35028993,66870.0,66869.0,0.00086]
[1718321826891,1.35328993,66870.0,66869.0,0.00186]
[1718321827165,1.27918993,66870.0,66869.0,0.00086]
[1718321827496,1.35428993,66870.0,66869.0,0.00186]
[1718321827698,1.35028993,66870.0,66869.0,0.00086]
[1718321828281,1.35028993,66870.0,66869.0,0.00186]
[1718321829254,1.35928993,66870.0,66869.0,0.00286]
[1718321829713,1.35028993,66870.0,66869.0,0.00186]
[1718321829859,1.35028993,66870.0,66869.0,0.00086]
[1718321830102,1.35028993,66870.0,66869.0,0.00186]
[1718321830103,1.35828993,66870.0,66869.0,0.00186]
[1718321830355,1.35828993,66870.0,66869.0,0.00286]
[1718321833088,1.45828993,66870.0,66869.0,0.00286]
[1718321838289,1.47640789,66870.0,66869.0,0.00286]
[1718321840004,1.53597093,66870.0,66869.0,0.00286]
[1718321841040,1.51785297,66870.0,66869.0,0.00286]
[1718321844125,1.53616901,66870.0,66869.0,0.00286]
[1718321844329,0.13,66858.0,66857.0,0.00086]
[1718321844528,0.48561993,66858.0,66857.0,0.00086]
[1718321845181,0.38561993,66858.0,66857.0,0.00086]
[1718321845393,0.03,66858.0,66857.0,0.06256]
[1718321845610,0.03,66858.0,66857.0,0.14156]
[1718321845877,0.03,66858.0,66857.0,0.16177276]
[1718321846726,0.03,66858.0,66857.0,0.17077276]
[1718321846727,0.031,66858.0,66857.0,0.17077276]
[1718321847357,0.031,66858.0,66857.0,0.16977276]
[1718321847589,0.03,66858.0,66857.0,0.16177276]
[1718321847992,0.031,66858.0,66857.0,0.17277276]
[1718321871182,0.031,66858.0,66857.0,0.11107276]
[1718321874821,0.17531993,66858.0,66857.0,0.03207276]
[1718321875035,0.23661993,66858.0,66857.0,0.03207276]
[1718321875253,0.23661993,66858.0,66857.0,0.01186]
[1718321875467,0.30771993,66858.0,66857.0,0.01186]
[1718321875675,0.38691993,66858.0,66857.0,0.01186]
[1718321877084,0.17531993,66858.0,66857.0,0.01186]
[1718321877570,0.17531993,66858.0,66857.0,0.02869867]
[1718321883079,0.35681993,66858.0,66857.0,0.02869867]
[1718321883296,1.20094017,66858.0,66857.0,0.01186]
[1718321884004,1.69908979,66858.0,66857.0,0.01186]
[1718321884214,1.63598644,66858.0,66857.0,0.01186]
[1718321885288,1.70608644,66858.0,66857.0,0.00086]
[1718321885493,1.63896358,66858.0,66857.0,0.00086]
[1718321885666,1.70707127,66858.0,66857.0,0.01186]
[1718321885921,1.70707127,66858.0,66857.0,0.00086]
[1718321886130,1.63996358,66858.0,66857.0,0.00186]
[1718321886392,1.70707127,66858.0,66857.0,0.00186]
[1718321886644,1.81747714,66858.0,66857.0,0.00186]
[1718321887089,1.92930285,66858.0,66857.0,0.00486]
[1718321887315,1.81747714,66858.0,66857.0,0.00486]
[1718321888228,1.76747714,66858.0,66857.0,0.00486]
[1718321888453,1.63200378,66858.0,66857.0,0.00486]
[1718321888669,1.90041783,66858.0,66857.0,0.00486]
[1718321889322,1.89941783,66858.0,66857.0,0.00186]
[1718321889761,1.90441783,66858.0,66857.0,0.00086]
[1718321890263,1.89941783,66858.0,66857.0,0.00086]
[1718321890444,1.80999544,66858.0,66857.0,0.00086]
[1718321890916,1.0329,66851.0,66850.0,0.00086]
[1718321891115,1.64366168,66851.0,66850.0,0.00086]
[1718321891536,1.54037168,66851.0,66850.0,0.00086]
[1718321892199,1.48428385,66851.0,66850.0,0.00086]
[1718321892438,1.54581096,66851.0,66850.0,0.00086]
[1718321892705,1.54181096,66851.0,66850.0,0.00086]
[1718321892878,1.55664232,66851.0,66850.0,0.00086]
[1718321893098,1.50528385,66851.0,66850.0,0.00186]
[1718321893727,1.40528385,66851.0,66850.0,0.00186]
[1718321893952,1.63461517,66851.0,66850.0,0.00186]
[1718321894376,1.39865125,66851.0,66850.0,0.00186]
[1718321894598,1.62761199,66851.0,66850.0,0.00186]
[1718321894821,0.74531993,66851.0,66850.0,0.00186]
[1718321895033,0.81641993,66851.0,66850.0,0.00186]
[1718321895440,0.83457931,66851.0,66850.0,0.00186]
[1718321896306,0.93457931,66851.0,66850.0,0.00186]
[1718321896572,1.06274724,66851.0,66850.0,0.00186]
[1718321896794,0.96274724,66851.0,66850.0,0.00186]
[1718321897429,1.06274724,66851.0,66850.0,0.00186]
[1718321904258,1.14054724,66851.0,66850.0,0.00186]
[1718321904655,1.20114724,66851.0,66850.0,0.00186]
[1718321906477,1.43250413,66851.0,66850.0,0.00186]
[1718321906680,1.20114724,66851.0,66850.0,0.00186]
[1718321906868,1.18298786,66851.0,66850.0,0.00186]
[1718321907136,1.41392253,66851.0,66850.0,0.00186]
[1718321907341,1.36392253,66851.0,66850.0,0.00186]
[1718321907557,1.41392253,66851.0,66850.0,0.00186]
[1718321908396,1.47137019,66851.0,66850.0,0.00186]
[1718321908826,1.69676881,66851.0,66850.0,0.00186]
[1718321909033,1.69676881,66851.0,66845.0,0.00085]
[1718321909034,0.2723,66846.0,66845.0,0.00085]
[1718321909236,0.77649651,66846.0,66845.0,0.00085]
[1718321909862,0.99365051,66846.0,66845.0,0.00085]
[1718321910076,1.04365051,66846.0,66845.0,0.00085]
[1718321910292,1.19365051,66846.0,66845.0,0.00085]
[1718321910496,1.38263299,66846.0,66845.0,0.00085]
[1718321910701,1.33797044,66846.0,66845.0,0.00085]
[1718321911576,1.35197044,66846.0,66845.0,0.00185]
[1718321912240,1.33797044,66846.0,66845.0,0.00085]
[1718321912449,1.35197044,66846.0,66845.0,0.00185]
[1718321912876,1.36297044,66846.0,66845.0,0.00185]
[1718321913102,1.33797044,66846.0,66845.0,0.00085]
[1718321913996,1.35197044,66846.0,66845.0,0.00085]
[1718321914433,1.35197044,66846.0,66845.0,0.00185]
[1718321914434,1.36597044,66846.0,66845.0,0.00185]
[1718321916447,0.03,66826.0,66825.0,0.1485]
[1718321916695,0.17431993,66826.0,66825.0,0.1485]
[1718321917750,0.17531993,66826.0,66825.0,0.1485]
[1718321917978,0.18331993,66826.0,66825.0,0.1495]
[1718321918634,0.25441993,66826.0,66825.0,0.1495]
[1718321920373,0.25441993,66826.0,66825.0,0.001]
[1718321921489,0.28986192,66826.0,66825.0,0.001]
[1718321922647,0.38986192,66826.0,66825.0,0.001]
[1718321922867,0.28986192,66826.0,66825.0,0.001]
[1718321923310,0.25441993,66826.0,66825.0,0.001]
[1718321924205,0.35441993,66826.0,66825.0,0.001]
[1718321924647,0.25441993,66826.0,66825.0,0.001]
[1718321925741,0.18331993,66826.0,66825.0,0.001]
[1718321925965,0.25441993,66826.0,66825.0,0.001]
[1718321926182,0.35821192,66826.0,66825.0,0.001]
[1718321926621,0.25441993,66826.0,66825.0,0.001]
[1718321928965,0.18331993,66826.0,66825.0,0.001]
[1718321929177,0.18331993,66826.0,66825.0,0.00186]
[1718321929398,0.25441993,66826.0,66825.0,0.00186]
[1718321929857,0.18331993,66826.0,66825.0,0.00186]
[1718321930080,0.25441993,66826.0,66825.0,0.00186]
[1718321930539,0.36999468,66826.0,66825.0,0.00186]
[1718321930750,0.39889468,66826.0,66825.0,0.00186]
[1718321930962,0.46999468,66826.0,66825.0,0.00186]
[1718321931191,0.52986368,66826.0,66825.0,0.00186]
[1718321934598,0.87916368,66826.0,66825.0,0.00186]
[1718321935954,0.87816368,66826.0,66825.0,0.00186]
[1718321936164,0.87016368,66826.0,66825.0,0.00086]
[1718321936365,1.0546248,66826.0,66825.0,0.00386]
[1718321936514,1.0666248,66826.0,66825.0,0.00386]
[1718321936716,1.13506739,66826.0,66825.0,0.00386]
[1718321937319,1.19219727,66826.0,66825.0,0.00386]
[1718321937732,1.13506739,66826.0,66825.0,0.00386]
[1718321938364,1.192234,66826.0,66825.0,0.00386]
[1718321939624,1.142234,66826.0,66825.0,0.00386]
[1718321939867,1.192234,66826.0,66825.0,0.00386]
[1718321941134,1.121134,66826.0,66825.0,0.00386]
[1718321941308,1.192234,66826.0,66825.0,0.00386]
[1718321943019,1.121134,66826.0,66825.0,0.00386]
[1718321943234,1.192234,66826.0,66825.0,0.00386]
[1718321944889,0.86069141,66826.0,66825.0,0.00386]
[1718321945104,0.93179141,66826.0,66825.0,0.00386]
[1718321945307,0.53781666,66826.0,66825.0,0.00386]
[1718321945526,0.36728893,66826.0,66825.0,0.08446]
[1718321946029,0.38550524,66826.0,66825.0,0.08446]
[1718321946335,0.55859738,66826.0,66825.0,0.08446]
[1718321946532,0.44127299,66826.0,66825.0,0.08446]
[1718321946783,0.38532519,66826.0,66825.0,0.08446]
[1718321948470,0.31422519,66826.0,66825.0,0.08446]
[1718321948683,0.38532519,66826.0,66825.0,0.08446]
[1718321949997,0.65852134,66826.0,66825.0,0.08446]
[1718321950422,0.40775771,66826.0,66825.0,0.08446]
[1718321950638,0.65763118,66826.0,66825.0,0.08446]
[1718321950850,0.47885771,66826.0,66825.0,0.08446]
[1718321951718,0.25422519,66826.0,66825.0,0.00386]
[1718321951936,0.25422519,66826.0,66825.0,0.14956]
[1718321952366,0.26422519,66826.0,66825.0,0.14956]
[1718321954447,0.25422519,66826.0,66825.0,0.14956]
[1718321954649,0.26422519,66826.0,66825.0,0.14956]
[1718321958010,0.24600888,66826.0,66825.0,0.14956]
[1718321960547,0.26363475,66826.0,66825.0,0.14956]
[1718321962550,0.26458075,66826.0,66825.0,0.14956]
[1718321966937,0.36458075,66826.0,66825.0,0.14956]
[1718321967167,0.46959883,66826.0,66825.0,0.00386]
[1718321967377,0.9429974,66826.0,66825.0,0.00386]
[1718321967579,0.83797799,66826.0,66825.0,0.00386]
[1718321967845,0.79325048,66826.0,66825.0,0.00386]
[1718321968054,0.83696856,66826.0,66825.0,0.00386]
[1718321969133,0.68696856,66826.0,66825.0,0.00386]
[1718321969341,0.56684164,66826.0,66825.0,0.00386]
[1718321969549,0.55484164,66826.0,66825.0,0.00386]
[1718321969765,0.55484164,66826.0,66825.0,0.00086]
[1718321969766,0.32368075,66826.0,66825.0,0.00086]
[1718321969976,0.35258075,66826.0,66825.0,0.00086]
[1718321970181,0.42468075,66826.0,66825.0,0.00086]
[1718321970811,0.42368075,66826.0,66825.0,0.00086]
[1718321971236,0.42368075,66826.0,66825.0,0.00386]
[1718321971442,0.43768075,66826.0,66825.0,0.00386]
[1718321971865,0.42368075,66826.0,66825.0,0.00386]
[1718321972325,0.43468075,66826.0,66825.0,0.00386]
[1718321972746,0.75038937,66826.0,66825.0,0.00386]
[1718321973015,1.15598937,66826.0,66825.0,0.00386]
[1718321973235,1.22308457,66826.0,66825.0,0.00386]
[1718321973438,1.11126245,66826.0,66825.0,0.00386]
[1718321973652,1.09363658,66826.0,66825.0,0.00386]
[1718321974295,1.18305595,66826.0,66825.0,0.00086]
[1718321974525,1.17505595,66826.0,66825.0,0.00086]
[1718321974943,1.18905595,66826.0,66825.0,0.00086]
[1718321975167,1.11794325,66826.0,66825.0,0.00086]
[1718321975373,1.17504325,66826.0,66825.0,0.00086]
[1718321975845,1.18904325,66826.0,66825.0,0.00086]
[1718321977108,1.09963658,66826.0,66825.0,0.00086]
[1718321977299,1.18902453,66826.0,66825.0,0.00086]
[1718321977553,1.11729215,66826.0,66825.0,0.00086]
[1718321977981,1.20668077,66826.0,66825.0,0.00086]
[1718321978213,1.18208638,66826.0,66825.0,0.00086]
[1718321979251,1.11098638,66826.0,66825.0,0.00086]
[1718321979548,1.18208638,66826.0,66825.0,0.00086]
[1718321981613,1.06096054,66826.0,66825.0,0.00086]
[1718321981815,1.18176117,66826.0,66825.0,0.00086]
[1718321982437,1.11473625,66826.0,66825.0,0.00086]
[1718321983661,0.77161995,66817.0,66816.0,0.00855]
[1718321983860,1.08993188,66817.0,66816.0,0.00855]
[1718321984906,1.09793188,66817.0,66816.0,0.00855]
[1718321985332,0.78503188,66817.0,66816.0,0.00855]
[1718321985539,0.85613188,66817.0,66816.0,0.00855]
[1718321985776,0.95613188,66817.0,66816.0,0.00855]
[1718321986304,0.95713188,66817.0,66816.0,0.01155]
[1718321990546,0.78603188,66817.0,66816.0,0.01155]
[1718321990732,0.95713188,66817.0,66816.0,0.01155]
[1718321994578,0.78603188,66817.0,66816.0,0.01155]
[1718321994983,0.85713188,66817.0,66816.0,0.01155]
[1718321995908,0.87527781,66817.0,66816.0,0.01155]
[1718321996547,0.97527781,66817.0,66816.0,0.01155]
[1718321996749,0.90417781,66817.0,66816.0,0.01155]
[1718321996926,0.97527781,66817.0,66816.0,0.01155]
[1718321997139,0.87527781,66817.0,66816.0,0.01155]
[1718321997950,0.80417781,66817.0,66816.0,0.01155]
[1718321998353,0.87527781,66817.0,66816.0,0.01155]
[1718321999285,0.80417781,66817.0,66816.0,0.01155]
[1718321999498,0.87527781,66817.0,66816.0,0.01155]
[1718322000780,0.93034364,66817.0,66816.0,0.01155]
[1718322001173,0.93034223,66817.0,66816.0,0.01155]
[1718322001548,0.9121963,66817.0,66816.0,0.01155]
[1718322002359,1.0121963,66817.0,66816.0,0.01155]
[1718322004602,0.92994199,66817.0,66816.0,0.01155]
[1718322005933,0.85884199,66817.0,66816.0,0.01155]
[1718322006133,0.92994199,66817.0,66816.0,0.01155]
[1718322006933,0.87487757,66817.0,66816.0,0.01155]
[1718322007162,0.92937285,66817.0,66816.0,0.01155]
[1718322007388,0.87487757,66817.0,66816.0,0.01155]
[1718322007603,0.92937382,66817.0,66816.0,0.01155]
[1718322007818,0.74538182,66817.0,66816.0,0.01155]
[1718322008034,0.19088557,66817.0,66816.0,0.15445]
[1718322008249,0.20088557,66817.0,66816.0,0.15445]
[1718322008455,0.20088557,66817.0,66816.0,0.17197327]
[1718322008673,0.20088557,66817.0,66816.0,0.15445]
[1718322008896,0.20088557,66817.0,66816.0,0.17197327]
[1718322009114,0.20088557,66817.0,66816.0,0.15445]
[1718322009340,0.27198557,66817.0,66816.0,0.17197327]
[1718322009576,0.27198557,66817.0,66816.0,0.15445]
[1718322013965,0.25423988,66817.0,66816.0,0.15445]
[1718322015270,0.24423988,66817.0,66816.0,0.09335]
[1718322015481,0.17313988,66817.0,66816.0,0.15405]
[1718322015698,0.18313988,66817.0,66816.0,0.15405]
[1718322017523,0.1911577,66817.0,66816.0,0.15405]
[1718322017782,0.17313988,66817.0,66816.0,0.15405]
[1718322026296,0.17313988,66817.0,66816.0,0.17152841]
[1718322026507,0.02881995,66817.0,66816.0,0.17152841]
[1718322031715,0.02881995,66817.0,66816.0,0.17929414]
[1718322037932,0.02863984,66817.0,66816.0,0.17929414]
[1718322049408,0.009,66817.0,66816.0,0.25039414]
[1718322056348,0.02863984,66817.0,66816.0,0.25039414]
[1718322056548,0.02863984,66817.0,66816.0,0.17929414]
[1718322058749,0.009,66817.0,66816.0,0.17929414]
[1718322059442,0.009946,66817.0,66816.0,0.17929414]
[1718322060278,0.02958584,66817.0,66816.0,0.17929414]
[1718322060513,0.009946,66817.0,66816.0,0.17929414]
[1718322064497,0.009946,66817.0,66816.0,0.22412062]
[1718322064720,0.009946,66817.0,66816.0,0.22417349]
[1718322065158,0.008946,66817.0,66816.0,0.22117349]
[1718322066103,0.000946,66817.0,66816.0,0.22117349]
[1718322066326,0.001946,66817.0,66816.0,0.22217349]
[1718322066775,0.002946,66817.0,66816.0,0.23317349]
[1718322067709,0.002946,66817.0,66816.0,0.4022071]
[1718322067970,0.002946,66817.0,66816.0,0.63753195]
[1718322068188,0.002946,66817.0,66816.0,0.74973034]
[1718322069061,0.002946,66817.0,66816.0,0.63753195]
[1718322069721,0.002946,66817.0,66816.0,0.74967021]
[1718322069924,0.002946,66817.0,66816.0,0.63753195]
[1718322070338,0.002946,66817.0,66816.0,0.74965226]
[1718322071195,0.002946,66817.0,66816.0,0.63753195]
[1718322071639,0.002946,66817.0,66816.0,0.74965226]
[1718322072072,0.002946,66817.0,66816.0,0.63753195]
[1718322074230,0.002946,66817.0,66816.0,0.72719927]
[1718322075053,0.002946,66817.0,66816.0,0.78719595]
[1718322075266,0.002946,66817.0,66816.0,0.8813511]
[1718322075690,0.002946,66817.0,66816.0,0.76959095]
[1718322075909,0.002946,66817.0,66816.0,0.76923079]
[1718322076347,0.001946,66817.0,66816.0,0.88071126]
[1718322076600,0.000946,66817.0,66816.0,0.86971126]
[1718322076839,0.000946,66817.0,66816.0,0.87971126]
[1718322077089,0.001946,66817.0,66816.0,0.78212827]
[1718322077292,0.001946,66817.0,66816.0,0.89416184]
[1718322077680,0.000946,66817.0,66816.0,0.89316184]
[1718322077845,0.000946,66817.0,66816.0,0.55367799]
[1718322078041,0.001946,66817.0,66816.0,0.89401795]
[1718322078555,0.001946,66817.0,66816.0,0.78198169]
[1718322079176,0.001946,66817.0,66816.0,0.88198169]
[1718322083815,0.001946,66817.0,66816.0,0.87777311]
[1718322084662,0.001946,66817.0,66816.0,0.94887311]
[1718322085234,0.001946,66817.0,66816.0,0.72577799]
[1718322085597,0.001946,66817.0,66816.0,0.94830272]
[1718322087020,0.001946,66817.0,66816.0,0.94864358]
[1718322088678,0.001946,66817.0,66816.0,1.04864358]
[1718322090593,0.001946,66817.0,66816.0,1.49229251]
[1718322091483,0.001946,66817.0,66816.0,1.62657933]
[1718322091697,0.001946,66817.0,66816.0,1.61657933]
[1718322091935,0.001946,66817.0,66816.0,1.53229251]
[1718322092175,0.000946,66817.0,66816.0,1.53129251]
[1718322092394,0.000946,66817.0,66816.0,1.67552712]
[1718322092609,0.001946,66817.0,66816.0,1.68352712]
[1718322092817,0.001946,66817.0,66816.0,1.54929251]
[1718322093054,0.000946,66817.0,66816.0,1.54129251]
[1718322093532,0.001946,66817.0,66816.0,1.37419207]
[1718322093996,0.001946,66817.0,66816.0,1.38419207]
[1718322094216,0.001946,66817.0,66816.0,1.37419207]
[1718322094664,0.001946,66817.0,66816.0,1.38319207]
[1718322094947,0.000946,66817.0,66816.0,1.37519207]
[1718322095410,0.001946,66817.0,66816.0,1.67252107]
[1718322095877,0.001946,66817.0,66816.0,1.37319207]
[1718322096590,0.001946,66817.0,66816.0,1.32319207]
[1718322096818,0.001946,66817.0,66816.0,1.38319207]
[1718322097040,0.001946,66817.0,66816.0,1.37319207]
[1718322097491,0.001946,66817.0,66816.0,1.4011116]
[1718322098143,0.001946,66817.0,66816.0,1.26688304]
[1718322098352,0.001946,66817.0,66816.0,1.4011116]
[1718322099229,0.001946,66817.0,66816.0,1.26688304]
[1718322099439,0.001946,66817.0,66816.0,1.4011116]
[1718322099647,0.001946,66817.0,66816.0,1.26688304]
[1718322101643,0.001946,66817.0,66816.0,1.4011116]
[1718322101865,0.001946,66817.0,66816.0,1.52525369]
[1718322102108,0.001946,66817.0,66816.0,1.39102513]
[1718322102319,0.001946,66817.0,66816.0,1.56448666]
[1718322102757,0.001946,66817.0,66816.0,1.53924252]
[1718322102973,0.001946,66817.0,66816.0,1.5649111]
[1718322103626,0.001946,66817.0,66816.0,1.6149111]
[1718322104075,0.001946,66817.0,66816.0,1.9142401]
[1718322104287,0.001946,66817.0,66816.0,1.76209201]
[1718322104723,0.001946,66817.0,66816.0,1.75624743]
[1718322104949,0.000946,66825.0,66824.0,0.15000616]
[1718322105199,0.000946,66825.0,66824.0,0.89404574]
[1718322105422,0.000946,66825.0,66824.0,1.2588041]
[1718322106315,0.001946,66825.0,66824.0,1.2658041]
[1718322106534,0.001946,66825.0,66824.0,1.26611143]
[1718322106748,0.001946,66825.0,66824.0,1.27611143]
[1718322108469,0.001946,66825.0,66824.0,1.27611043]
[1718322110493,0.001946,66825.0,66824.0,1.19871043]
[1718322110709,0.001946,66825.0,66824.0,1.31044253]
[1718322111793,0.001946,66825.0,66824.0,1.13701043]
[1718322112249,0.4504902,66841.0,66832.0,0.00036016]
[1718322112429,0.4504902,66841.0,66840.0,0.0711]
[1718322112636,0.01963984,66841.0,66840.0,0.0711]
[1718322112889,0.01963984,66841.0,66840.0,0.09671937]
[1718322113545,0.01963984,66843.0,66840.0,0.09671937]
[1718322113742,0.0817,66841.0,66840.0,0.09671937]
[1718322113991,0.1452,66841.0,66840.0,0.10671937]
[1718322114270,0.1462,66841.0,66840.0,0.10671937]
[1718322114717,0.1452,66841.0,66840.0,0.10671937]
[1718322115652,0.1462,66841.0,66840.0,0.11471937]
[1718322115880,0.1462,66841.0,66840.0,0.10471937]
[1718322116361,0.001,66841.0,66840.0,0.11471937]
[1718322116917,0.08313984,66841.0,66840.0,0.10671937]
[1718322117126,0.16483984,66841.0,66840.0,0.09671937]
[1718322117475,0.16583984,66841.0,66840.0,0.11471937]
[1718322117679,0.16583984,66841.0,66840.0,0.10471937]
[1718322117835,0.16483984,66841.0,66840.0,0.09671937]
[1718322118293,0.16583984,66841.0,66840.0,0.10471937]
[1718322118741,0.02063984,66841.0,66840.0,0.10471937]
[1718322118982,0.02063984,66841.0,66840.0,0.18131937]
[1718322118983,0.001,66841.0,66840.0,0.18131937]
[1718322119292,0.001,66841.0,66840.0,0.11471937]
[1718322119482,0.1423,66841.0,66840.0,0.11471937]
[1718322119702,0.001,66841.0,66840.0,0.11471937]
[1718322120446,0.001,66841.0,66840.0,0.18283719]
[1718322120679,0.001,66841.0,66840.0,0.3009609]
[1718322121139,0.0821,66841.0,66840.0,0.34574116]
[1718322121366,0.001,66841.0,66840.0,0.13771937]
[1718322121815,0.1423,66841.0,66840.0,0.06661937]
[1718322122029,0.16193984,66841.0,66840.0,0.13771937]
[1718322122260,0.16193984,66841.0,66840.0,0.18249963]
[1718322122697,0.1423,66841.0,66840.0,0.18249963]
[1718322122903,0.16193984,66841.0,66840.0,0.18249963]
[1718322124222,0.16193984,66841.0,66840.0,0.13771937]
[1718322124636,0.16193984,66841.0,66840.0,0.18251174]
[1718322124637,0.16287485,66841.0,66840.0,0.18251174]
[1718322127809,0.16287485,66841.0,66840.0,0.23509384]
[1718322128216,0.16287485,66841.0,66840.0,0.14100028]
[1718322128429,0.16287485,66841.0,66840.0,0.04361937]
[1718322129210,0.16287485,66841.0,66840.0,0.018]
[1718322129613,0.16287485,66841.0,66840.0,0.03931282]
[1718322129816,0.16287485,66841.0,66840.0,0.018]
[1718322130038,0.16287485,66841.0,66840.0,0.03931282]
[1718322130245,0.16287485,66841.0,66840.0,0.018]
[1718322130476,0.16287485,66841.0,66840.0,0.03931282]
[1718322130670,0.16287485,66841.0,66840.0,0.018]
[1718322130878,0.16287485,66841.0,66840.0,0.03931282]
[1718322131105,0.16287485,66841.0,66840.0,0.018]
[1718322131310,0.16287485,66841.0,66840.0,0.03931282]
[1718322131501,0.16287485,66841.0,66840.0,0.018]
[1718322131632,0.16287485,66841.0,66840.0,0.03931282]
[1718322136695,0.17287485,66841.0,66840.0,0.03931282]
[1718322140586,0.16287485,66841.0,66840.0,0.03931282]
[1718322147323,0.02157485,66841.0,66840.0,0.03931282]
[1718322149103,0.03157485,66841.0,66840.0,0.03931282]
[1718322150888,0.02157485,66841.0,66840.0,0.03931282]
[1718322151087,0.03157485,66841.0,66840.0,0.03931282]
[1718322151465,0.02157485,66841.0,66840.0,0.03931282]
[1718322151609,0.03157485,66841.0,66840.0,0.03931282]
[1718322152610,0.11227485,66841.0,66840.0,0.03931282]
[1718322154022,0.10227485,66841.0,66840.0,0.03931282]
[1718322154425,0.11227485,66841.0,66840.0,0.03931282]
[1718322154908,0.10227485,66841.0,66840.0,0.03931282]
[1718322155314,0.11227485,66841.0,66840.0,0.03931282]
[1718322156987,0.10227485,66841.0,66840.0,0.03931282]
[1718322157403,0.10227485,66841.0,66840.0,0.04016282]
[1718322159226,0.11227485,66841.0,66840.0,0.04016282]
[1718322159869,0.17477485,66841.0,66840.0,0.04016282]
[1718322160822,0.17477485,66841.0,66840.0,0.01885]